[Event "EYCC 2017"]
[Site "Mamaia"]
[Date "2017.09.07"]
[Round "3"]
[White "Sjoberg, Isak"]
[Black "Mis, Mieszko"]
[Result "1/2-1/2"]
[ECO "B53"]
[WhiteElo "2078"]
[BlackElo "2245"]
[Annotator "NA"]
[PlyCount "107"]
[EventDate "2017.??.??"]
[EventType "swiss"]
[EventCountry "ROU"]
[SourceTitle "playchess.com"]
[Source "ChessBase"]
[SourceQuality "1"]
[TimeControl "40/5400+30:1800+30"]

1. e4 {[%emt 0:00:00]} c5 {[%emt 0:00:15]} 2. Nf3 {[%emt 0:00:00]} d6 {[%emt 0:00:13]} 3. d4 {[%emt 0:01:19]} cxd4 {[%emt 0:00:11]} 4. Qxd4 {[%emt 0:01:47]} Nc6 {[%emt 0:00:35]} 5. Bb5 {[%emt 0:00:07]} Bd7 {[%emt 0:00:07]} 6. Bxc6 {[%emt 0:03:50]} Bxc6 {[%emt 0:00:10]} 7. Nc3 {[%emt 0:00:05]} Nf6 {[%emt 0:00:31]} 8. Bg5 {[%emt 0:00:03]} e6 {[%emt 0:00:03]} 9. O-O-O {[%emt 0:00:07]} Be7 {[%emt 0:00:35]} 10. Qd3 {[%emt 0:00:03]} Qa5 {[%emt 0:00:28]} 11. h4 {[%emt 0:00:07]} O-O {[%emt 0:06:54]} 12. Nd4 {[%emt 0:00:07]} Rac8 {[%emt 0:04:20]} 13. f4 {[%emt 0:07:29]} a6 {[%emt 0:06:25]} 14. Kb1 {[%emt 0:03:42]} Qc7 {[%emt 0:07:10]} 15. Bxf6 {[%emt 0:12:32]} Bxf6 {[%emt 0:00:28]} 16. g4 {[%emt 0:00:43]} Rfe8 {[%emt 0:08:58]} 17. g5 {[%emt 0:13:27]} Bxd4 {[%emt 0:00:20]} 18. Qxd4 {[%emt 0:00:17]} e5 {[%emt 0:00:10]} 19. Qf2 {[%emt 0:01:46]} exf4 {[%emt 0:00:56]} 20. Qxf4 {[%emt 0:01:54]} Bxe4 {[%emt 0:05:09]} 21. Nxe4 {[%emt 0:07:16]} Qxc2+ {[%emt 0:00:02]} 22. Ka1 {[%emt 0:00:06]} Qxe4 {[%emt 0:08:19]} 23. Qxd6 {[%emt 0:01:28]} a5 {[%emt 0:01:23]} 24. h5 {[%emt 0:03:39]} Qe5 {[%emt 0:08:08]} 25. Qd2 {[%emt 0:03:11]} Qe3 {[%emt 0:06:59]} 26. Qxa5 {[%emt 0:08:18]} Ra8 {[%emt 0:08:42]} 27. Rhe1 {[%emt 0:00:30]} Rxa5 {[%emt 0:00:56]} 28. Rxe3 {[%emt 0:00:05]} Rea8 {[%emt 0:00:15]} 29. Ra3 {[%emt 0:06:03]} Rxa3 {[%emt 0:00:09]} 30. bxa3 {[%emt 0:00:03]} Kf8 {[%emt 0:00:16]} 31. Rd7 {[%emt 0:00:27]} Rxa3 {[%emt 0:08:19]} 32. Rxb7 {[%emt 0:00:48]} Ra5 {[%emt 0:04:11]} 33. Rb8+ {[%emt 0:01:00]} Ke7 {[%emt 0:00:02]} 34. Rh8 {[%emt 0:00:12]} Rxg5 {[%emt 0:03:59]} 35. Rxh7 {[%emt 0:00:09]} Rg2 {[%emt 0:00:52]} 36. h6 {[%emt 0:03:17]} gxh6 {[%emt 0:05:57]} 37. Rxh6 {[%emt 0:00:06]} f5 {[%emt 0:00:13]} 38. Kb1 {[%emt 0:04:59]} f4 {[%emt 0:01:27]} 39. Rh3 {[%emt 0:03:53]} Ke6 {[%emt 0:01:01]} 40. Kc1 {[%emt 0:00:00]} Rg3 {[%emt 0:02:01]} 41. Rh8 {[%emt 0:05:03]} Ke5 {[%emt 0:00:44]} 42. Kd2 {[%emt 0:02:07]} Ke4 {[%emt 0:06:31]} 43. Ke2 {[%emt 0:10:58]} Rg2+ {[%emt 0:04:27]} 44. Kf1 {[%emt 0:00:29]} Rxa2 {[%emt 0:00:26]} 45. Rh3 {[%emt 0:00:15]} Kf5 {[%emt 0:00:19]} 46. Rc3 {[%emt 0:00:40]} Kg4 {[%emt 0:00:20]} 47. Rb3 {[%emt 0:00:10]} Ra4 {[%emt 0:01:45]} 48. Kf2 {[%emt 0:02:18]} f3 {[%emt 0:00:40]} 49. Rb8 {[%emt 0:00:30]} Ra2+ {[%emt 0:00:11]} 50. Kf1 {[%emt 0:00:06]} Ra5 {[%emt 0:00:04]} 51. Rg8+ {[%emt 0:00:31]} Rg5 {[%emt 0:00:07]} 52. Rxg5+ {[%emt 0:00:13]} Kxg5 {[%emt 0:00:02]} 53. Kf2 {[%emt 0:00:04]} Kg4 {[%emt 0:00:10]} 54. Kf1 {[%emt 0:00:02]} 1/2-1/2

[Event "EYCC 2017"]
[Site "Mamaia"]
[Date "2017.09.07"]
[Round "3"]
[White "Bilych, Olexiy"]
[Black "De Boer, Eelke"]
[Result "0-1"]
[ECO "B90"]
[WhiteElo "2075"]
[BlackElo "2233"]
[Annotator "NA"]
[PlyCount "106"]
[EventDate "2017.??.??"]
[EventType "swiss"]
[EventCountry "ROU"]
[SourceTitle "playchess.com"]
[Source "ChessBase"]
[SourceQuality "1"]
[TimeControl "40/5400+30:1800+30"]

1. e4 {[%emt 0:00:00]} c5 {[%emt 0:00:07]} 2. Nf3 {[%emt 0:00:00]} d6 {[%emt 0:00:05]} 3. d4 {[%emt 0:00:00]} cxd4 {[%emt 0:00:06]} 4. Nxd4 {[%emt 0:00:17]} Nf6 {[%emt 0:00:07]} 5. Nc3 {[%emt 0:05:50]} a6 {[%emt 0:00:27]} 6. h3 {[%emt 0:00:20]} e6 {[%emt 0:00:06]} 7. g4 {[%emt 0:00:21]} d5 {[%emt 0:00:07]} 8. Nde2 {[%emt 0:00:45]} Bb4 {[%emt 0:05:35]} 9. Bg5 {[%emt 0:10:16]} Nc6 {[%emt 0:22:29]} 10. exd5 {[%emt 0:10:51]} Qxd5 {[%emt 0:00:52]} 11. Qxd5 {[%emt 0:00:34]} Nxd5 {[%emt 0:00:12]} 12. Bd2 {[%emt 0:04:31]} Nb6 {[%emt 0:04:31]} 13. b3 {[%emt 0:11:38]} e5 {[%emt 0:01:40]} 14. O-O-O {[%emt 0:02:15]} Be6 {[%emt 0:07:45]} 15. Be3 {[%emt 0:00:59]} Nd7 {[%emt 0:00:33]} 16. Bg2 {[%emt 0:01:29]} Rc8 {[%emt 0:04:11]} 17. Kb2 {[%emt 0:02:47]} O-O {[%emt 0:13:59]} 18. Ne4 {[%emt 0:07:47]} f6 {[%emt 0:16:29]} 19. a3 {[%emt 0:02:12]} Be7 {[%emt 0:00:26]} 20. Nd6 {[%emt 0:01:09]} Rc7 {[%emt 0:06:34]} 21. c4 {[%emt 0:09:16]} g6 {[%emt 0:03:22]} 22. Bd5 {[%emt 0:07:09]} Bxd5 {[%emt 0:00:19]} 23. Rxd5 {[%emt 0:00:06]} Bxd6 {[%emt 0:03:42]} 24. Rxd6 {[%emt 0:00:05]} Kf7 {[%emt 0:00:12]} 25. Rhd1 {[%emt 0:00:20]} Ncb8 {[%emt 0:02:31]} 26. Nc3 {[%emt 0:01:06]} Re8 {[%emt 0:02:09]} 27. Ba7 {[%emt 0:06:13]} Ke7 {[%emt 0:02:17]} 28. R6d2 {[%emt 0:07:06]} Rc6 {[%emt 0:00:49]} 29. Nd5+ {[%emt 0:01:23]} Ke6 {[%emt 0:00:48]} 30. Nb4 {[%emt 0:00:48]} Rc7 {[%emt 0:00:23]} 31. Bb6 Nxb6 {[%emt 0:01:20]} 32. Rd6+ {[%emt 0:00:39]} Kf7 {[%emt 0:00:17]} 33. Rxb6 {[%emt 0:00:03]} Re6 {[%emt 0:01:49]} 34. Rxe6 {[%emt 0:00:56]} Kxe6 {[%emt 0:00:01]} 35. Rd8 {[%emt 0:03:23]} Nc6 {[%emt 0:00:06]} 36. Nxc6 {[%emt 0:00:13]} Rxc6 {[%emt 0:00:08]} 37. Re8+ {[%emt 0:00:19]} Kf7 {[%emt 0:00:30]} 38. Rh8 {[%emt 0:00:45]} Kg7 {[%emt 0:00:09]} 39. Rb8 {[%emt 0:01:58]} Rc7 {[%emt 0:00:13]} 40. Kc3 {[%emt 0:00:00]} Rd7 {[%emt 0:02:22]} 41. Kb4 {[%emt 0:14:04]} f5 {[%emt 0:07:20]} 42. gxf5 {[%emt 0:05:02]} gxf5 {[%emt 0:00:18]} 43. Ka5 {[%emt 0:01:06]} e4 {[%emt 0:01:03]} 44. Kb6 {[%emt 0:01:01]} f4 {[%emt 0:00:11]} 45. Re8 {[%emt 0:00:17]} e3 {[%emt 0:00:10]} 46. f3 {[%emt 0:08:58]} Kf7 {[%emt 0:00:26]} 47. Re4 {[%emt 0:00:45]} Re7 {[%emt 0:00:18]} 48. Rxf4+ {[%emt 0:00:03]} Ke8 {[%emt 0:00:13]} 49. Rg4 {[%emt 0:00:03]} e2 {[%emt 0:00:10]} 50. Rg1 {[%emt 0:00:01]} e1=Q {[%emt 0:00:19]} 51. Rxe1 {[%emt 0:00:03]} Rxe1 {[%emt 0:00:11]} 52. Kxb7 {[%emt 0:00:01]} Re3 {[%emt 0:00:35]} 53. b4 {[%emt 0:00:13]} Rxa3 {[%emt 0:00:08]} 0-1

[Event "EYCC 2017"]
[Site "Mamaia"]
[Date "2017.09.07"]
[Round "3"]
[White "Tadic, Stefan"]
[Black "Pham, Khoi"]
[Result "1-0"]
[ECO "B46"]
[WhiteElo "2074"]
[BlackElo "1895"]
[Annotator "NA"]
[PlyCount "69"]
[EventDate "2017.??.??"]
[EventType "swiss"]
[EventCountry "ROU"]
[SourceTitle "playchess.com"]
[Source "ChessBase"]
[SourceQuality "1"]
[TimeControl "40/5400+30:1800+30"]

1. e4 {[%emt 0:00:00]} c5 {[%emt 0:00:13]} 2. Nf3 {[%emt 0:00:13]} Nc6 {[%emt 0:00:15]} 3. d4 {[%emt 0:00:44]} cxd4 {[%emt 0:00:13]} 4. Nxd4 {[%emt 0:00:35]} e6 {[%emt 0:00:26]} 5. Nc3 {[%emt 0:01:33]} a6 {[%emt 0:00:59]} 6. Be2 {[%emt 0:00:57]} Nge7 {[%emt 0:00:23]} 7. Nb3 {[%emt 0:06:08]} Ng6 {[%emt 0:04:39]} 8. O-O {[%emt 0:02:39]} b5 {[%emt 0:04:20]} 9. Be3 {[%emt 0:02:53]} Be7 {[%emt 0:01:58]} 10. a4 {[%emt 0:14:38]} b4 {[%emt 0:03:41]} 11. a5 {[%emt 0:05:17]} Bg5 {[%emt 0:14:23]} 12. Bb6 {[%emt 0:03:13]} Qf6 {[%emt 0:00:42]} 13. Na4 {[%emt 0:00:15]} O-O {[%emt 0:02:38]} 14. Bc5 {[%emt 0:01:33]} d6 {[%emt 0:08:19]} 15. Qxd6 {[%emt 0:22:00]} Nce5 {[%emt 0:03:55]} 16. Qd1 {[%emt 0:07:54]} Rd8 {[%emt 0:02:45]} 17. Bd4 {[%emt 0:00:23]} Nf4 {[%emt 0:02:31]} 18. Kh1 {[%emt 0:03:06]} Qg6 {[%emt 0:07:15]} 19. Bf3 {[%emt 0:07:45]} f6 {[%emt 0:15:26]} 20. Nb6 {[%emt 0:08:33]} Rb8 {[%emt 0:08:13]} 21. c3 {[%emt 0:00:20]} Nxf3 {[%emt 0:01:51]} 22. Qxf3 {[%emt 0:00:08]} e5 {[%emt 0:01:01]} 23. Be3 {[%emt 0:02:01]} h5 {[%emt 0:02:17]} 24. h3 {[%emt 0:00:50]} Kf7 {[%emt 0:04:07]} 25. Bxf4 {[%emt 0:01:21]} Bxf4 {[%emt 0:00:43]} 26. Qe2 {[%emt 0:00:27]} Be6 {[%emt 0:01:35]} 27. Nc5 {[%emt 0:00:15]} Rd2 {[%emt 0:00:26]} 28. Qxa6 {[%emt 0:01:01]} Re8 {[%emt 0:03:23]} 29. Nc4 {[%emt 0:01:05]} Rxf2 {[%emt 0:05:34]} 30. Rxf2 {[%emt 0:00:54]} Qg3 {[%emt 0:00:06]} 31. Rxf4 {[%emt 0:00:06]} Bxh3 {[%emt 0:00:33]} 32. Nd6+ {[%emt 0:00:03]} Kg8 {[%emt 0:00:36]} 33. Qe2 {[%emt 0:00:07]} exf4 {[%emt 0:00:48]} 34. Nxe8 {[%emt 0:00:48]} Bg4 {[%emt 0:00:07]} 35. Qe1 {[%emt 0:00:06]} 1-0

[Event "EYCC 2017"]
[Site "Mamaia"]
[Date "2017.09.07"]
[Round "3"]
[White "Shpanko, Nadiia"]
[Black "Cramling Bellon, Anna"]
[Result "1-0"]
[ECO "B92"]
[WhiteElo "2065"]
[BlackElo "1926"]
[Annotator "NA"]
[PlyCount "81"]
[EventDate "2017.??.??"]
[EventType "swiss"]
[EventCountry "ROU"]
[SourceTitle "playchess.com"]
[Source "ChessBase"]
[SourceQuality "1"]
[TimeControl "40/5400+30:1800+30"]

1. e4 {[%emt 0:00:00]} c5 {[%emt 0:00:06]} 2. Nf3 {[%emt 0:00:00]} d6 {[%emt 0:00:04]} 3. d4 {[%emt 0:00:00]} cxd4 {[%emt 0:00:06]} 4. Nxd4 {[%emt 0:00:00]} Nf6 {[%emt 0:00:04]} 5. Nc3 {[%emt 0:00:03]} a6 {[%emt 0:00:03]} 6. Be2 {[%emt 0:00:08]} e5 {[%emt 0:00:43]} 7. Nf3 {[%emt 0:00:09]} h6 {[%emt 0:00:07]} 8. a4 {[%emt 0:01:29] LiveBook: 18 Games} b6 $16 {[%emt 0:06:09]} (8... Nc6 $11) 9. Be3 {[%emt 0:06:46]} Bb7 {[%emt 0:16:33]} 10. Nd2 {[%emt 0:00:09]} Nbd7 {[%emt 0:00:12]} 11. O-O {[%emt 0:06:47]} Be7 {[%emt 0:00:13]} 12. f3 {[%emt 0:02:12]} O-O {[%emt 0:01:45]} 13. Nc4 {[%emt 0:00:16]} Qc7 {[%emt 0:01:12]} 14. Qd2 {[%emt 0:06:03]} Nc5 {[%emt 0:31:36]} 15. b4 {[%emt 0:10:27]} Ncd7 {[%emt 0:00:28]} 16. Rfd1 {[%emt 0:01:33]} Rfd8 {[%emt 0:09:33]} 17. Bf1 {[%emt 0:16:18]} Rab8 {[%emt 0:05:55]} 18. Bf2 {[%emt 0:13:00]} Kh7 {[%emt 0:10:02]} 19. Ra3 {[%emt 0:03:28]} a5 {[%emt 0:02:17]} 20. Nb5 {[%emt 0:01:07]} Qc6 {[%emt 0:00:07]} 21. bxa5 {[%emt 0:02:42]} d5 {[%emt 0:01:32]} 22. exd5 {[%emt 0:02:03]} Nxd5 {[%emt 0:00:10]} 23. Raa1 {[%emt 0:01:06]} Nf4 {[%emt 0:06:17]} 24. Be3 {[%emt 0:08:17]} Nc5 {[%emt 0:00:29]} 25. Qf2 {[%emt 0:00:41]} Qg6 {[%emt 0:04:40]} 26. Kh1 {[%emt 0:01:51]} Qh5 {[%emt 0:00:01]} 27. Bxf4 {[%emt 0:04:30]} exf4 {[%emt 0:00:01]} 28. Rxd8 {[%emt 0:00:15]} Rxd8 {[%emt 0:00:07]} 29. Qe2 {[%emt 0:06:33]} Ne6 {[%emt 0:01:05]} 30. axb6 {[%emt 0:01:46]} Bc5 {[%emt 0:00:33]} 31. Rd1 {[%emt 0:02:46]} Re8 {[%emt 0:02:47]} 32. Nbd6 {[%emt 0:01:33]} Ng5 {[%emt 0:00:56]} 33. Qd3+ {[%emt 0:00:53]} Kh8 {[%emt 0:00:34]} 34. Nxb7 {[%emt 0:00:36]} Bf2 {[%emt 0:00:29]} 35. Nbd6 {[%emt 0:00:40]} Bg3 {[%emt 0:00:10]} 36. h3 {[%emt 0:00:05]} Rd8 {[%emt 0:00:49]} 37. Qf5 {[%emt 0:01:08]} Qh4 {[%emt 0:00:33]} 38. Qg4 {[%emt 0:00:44]} Nxh3 {[%emt 0:00:28]} 39. Qxh4 Nf2+ {[%emt 0:00:19]} 40. Kg1 {[%emt 0:00:00]} Bxh4 {[%emt 0:00:16]} 41. Rd2 1-0

[Event "EYCC 2017"]
[Site "Mamaia"]
[Date "2017.09.07"]
[Round "3"]
[White "Chyzy, Jakub"]
[Black "Unneland, Mathias"]
[Result "1-0"]
[ECO "C02"]
[WhiteElo "2060"]
[BlackElo "1883"]
[Annotator "NA"]
[PlyCount "117"]
[EventDate "2017.??.??"]
[EventType "swiss"]
[EventCountry "ROU"]
[SourceTitle "playchess.com"]
[Source "ChessBase"]
[SourceQuality "1"]
[TimeControl "40/5400+30:1800+30"]

1. e4 {[%emt 0:00:00]} e6 {[%emt 0:00:07]} 2. d4 {[%emt 0:00:00]} d5 {[%emt 0:00:06]} 3. e5 {[%emt 0:00:00]} c5 {[%emt 0:00:06]} 4. c3 {[%emt 0:00:00]} Nc6 {[%emt 0:01:10]} 5. Nf3 {[%emt 0:00:00]} Qb6 {[%emt 0:00:53]} 6. Bd3 {[%emt 0:00:02]} Bd7 {[%emt 0:00:08]} 7. dxc5 {[%emt 0:00:21]} Bxc5 {[%emt 0:00:11]} 8. O-O {[%emt 0:00:04]} f6 {[%emt 0:01:05]} 9. b4 {[%emt 0:01:11]} Be7 {[%emt 0:00:18]} 10. b5 {[%emt 0:00:38]} Nd8 {[%emt 0:01:33]} 11. a4 {[%emt 0:00:54]} Nf7 {[%emt 0:01:17]} 12. Bf4 {[%emt 0:01:34]} fxe5 {[%emt 0:02:19]} 13. Nxe5 {[%emt 0:06:43]} Nf6 {[%emt 0:02:21]} 14. Nxf7 {[%emt 0:19:16]} Kxf7 {[%emt 0:00:12]} 15. Nd2 {[%emt 0:02:10]} Bd6 {[%emt 0:01:15]} 16. Bxd6 {[%emt 0:06:16]} Qxd6 {[%emt 0:00:09]} 17. Nf3 {[%emt 0:02:43]} e5 {[%emt 0:01:24]} 18. Ng5+ {[%emt 0:10:37]} Kf8 {[%emt 0:00:32]} 19. Re1 {[%emt 0:00:19]} Re8 {[%emt 0:00:57]} 20. Bc2 {[%emt 0:05:17]} h6 {[%emt 0:00:59]} 21. Ne4 {[%emt 0:03:57]} Qe6 {[%emt 0:03:51]} 22. Nxf6 {[%emt 0:03:53]} gxf6 {[%emt 0:00:57]} 23. Bb3 {[%emt 0:00:09]} Qf7 {[%emt 0:02:32]} 24. Qxd5 {[%emt 0:05:24]} Be6 {[%emt 0:01:06]} 25. Qc5+ {[%emt 0:00:17]} Qe7 {[%emt 0:00:32]} 26. Qxe7+ {[%emt 0:01:41]} Rxe7 {[%emt 0:00:08]} 27. Bxe6 {[%emt 0:00:40]} Rxe6 {[%emt 0:00:07]} 28. f4 {[%emt 0:01:07]} Ke7 {[%emt 0:01:23]} 29. fxe5 {[%emt 0:05:03]} fxe5 {[%emt 0:00:19]} 30. Re4 {[%emt 0:02:58]} Rd8 {[%emt 0:02:47]} 31. Rae1 {[%emt 0:01:03]} Rd5 {[%emt 0:00:57]} 32. c4 {[%emt 0:00:21]} Rc5 {[%emt 0:00:45]} 33. g4 {[%emt 0:01:31]} a6 {[%emt 0:01:46]} 34. h4 {[%emt 0:01:19]} Kf6 {[%emt 0:03:45]} 35. Kf2 {[%emt 0:06:50]} Rc7 {[%emt 0:02:05]} 36. Ke3 {[%emt 0:03:27]} axb5 {[%emt 0:02:06]} 37. axb5 {[%emt 0:00:45]} b6 {[%emt 0:01:45]} 38. Rf1+ {[%emt 0:05:07]} Ke7 {[%emt 0:00:08]} 39. Rf5 {[%emt 0:02:26]} Kd6 {[%emt 0:00:17]} 40. Kf3 {[%emt 0:00:00]} Ra7 {[%emt 0:02:14]} 41. Re3 {[%emt 0:03:53]} Rc7 {[%emt 0:07:02]} 42. Rd3+ {[%emt 0:09:50]} Ke7 {[%emt 0:00:21]} 43. Rc3 {[%emt 0:03:09]} Kd6 {[%emt 0:02:07]} 44. Ke4 {[%emt 0:02:52]} Rg7 {[%emt 0:00:48]} 45. g5 {[%emt 0:02:57]} hxg5 {[%emt 0:00:14]} 46. hxg5 {[%emt 0:03:15]} Kc5 {[%emt 0:05:45]} 47. Rf6 {[%emt 0:02:50]} Kd6 {[%emt 0:05:07]} 48. Kf5 {[%emt 0:01:22]} Rxf6+ {[%emt 0:01:08]} 49. gxf6 {[%emt 0:02:33]} Rg1 {[%emt 0:01:34]} 50. Rd3+ {[%emt 0:01:58]} Kc5 {[%emt 0:00:22]} 51. Rd5+ {[%emt 0:00:07]} Kxc4 {[%emt 0:01:21]} 52. Rxe5 {[%emt 0:00:07]} Rg8 {[%emt 0:00:49]} 53. f7 {[%emt 0:00:43]} Rg1 {[%emt 0:00:51]} 54. Kf6 {[%emt 0:00:19]} Rf1+ {[%emt 0:00:16]} 55. Rf5 {[%emt 0:00:05]} Rxf5+ {[%emt 0:00:17]} 56. Kxf5 {[%emt 0:00:04]} Kxb5 {[%emt 0:00:12]} 57. f8=Q {[%emt 0:00:06]} Ka4 {[%emt 0:00:21]} 58. Qf6 {[%emt 0:00:11]} b5 {[%emt 0:00:31]} 59. Qb2 {[%emt 0:00:05]} 1-0

[Event "EYCC 2017"]
[Site "Mamaia"]
[Date "2017.09.07"]
[Round "3"]
[White "Krasteva, Beloslava"]
[Black "Ciolacu, Alessia-Mihaela"]
[Result "1-0"]
[ECO "E47"]
[WhiteElo "2048"]
[BlackElo "1787"]
[Annotator "NA"]
[PlyCount "83"]
[EventDate "2017.??.??"]
[EventType "swiss"]
[EventCountry "ROU"]
[SourceTitle "playchess.com"]
[Source "ChessBase"]
[SourceQuality "1"]
[TimeControl "40/5400+30:1800+30"]

1. d4 {[%emt 0:00:00]} Nf6 {[%emt 0:00:18]} 2. c4 {[%emt 0:00:01]} e6 {[%emt 0:00:23]} 3. Nc3 {[%emt 0:00:39]} Bb4 {[%emt 0:00:31]} 4. e3 {[%emt 0:00:36]} O-O {[%emt 0:00:15]} 5. Bd3 {[%emt 0:00:23]} Re8 {[%emt 0:00:24]} 6. e4 {[%emt 0:06:20]} d5 {[%emt 0:08:03]} 7. e5 {[%emt 0:05:40]} dxc4 {[%emt 0:03:49]} 8. Bxc4 {[%emt 0:01:00]} Nfd7 {[%emt 0:08:00]} 9. a3 {[%emt 0:08:32]} Bf8 {[%emt 0:08:40]} 10. Nf3 {[%emt 0:00:44]} c5 {[%emt 0:10:05]} 11. dxc5 {[%emt 0:03:22]} Nxc5 {[%emt 0:02:34]} 12. O-O {[%emt 0:02:10]} a6 {[%emt 0:01:57]} 13. Qe2 {[%emt 0:02:48]} b5 {[%emt 0:01:54]} 14. Ba2 {[%emt 0:01:06]} Bb7 {[%emt 0:00:35]} 15. Rd1 {[%emt 0:05:12]} Qc7 {[%emt 0:01:40]} 16. Bf4 {[%emt 0:02:51]} Nc6 {[%emt 0:10:23]} 17. Rac1 {[%emt 0:03:53]} f6 {[%emt 0:07:46]} 18. b4 {[%emt 0:04:50]} Na4 {[%emt 0:07:00]} 19. Nxa4 {[%emt 0:04:10]} bxa4 {[%emt 0:00:16]} 20. Bg3 {[%emt 0:03:58]} Qf7 {[%emt 0:08:05]} 21. Qc2 {[%emt 0:03:58]} fxe5 {[%emt 0:02:03]} 22. Ng5 {[%emt 0:09:53]} Qh5 {[%emt 0:04:31]} 23. Nxe6 {[%emt 0:02:35]} Kh8 {[%emt 0:00:24]} 24. Rd7 {[%emt 0:07:18]} Rxe6 {[%emt 0:04:07]} 25. Bxe6 {[%emt 0:03:33]} Nd4 {[%emt 0:00:41]} 26. Qd1 {[%emt 0:08:48]} Ne2+ {[%emt 0:01:52]} 27. Kf1 {[%emt 0:02:52]} Nxg3+ {[%emt 0:03:18]} 28. fxg3 {[%emt 0:00:56]} Qg6 {[%emt 0:01:53]} 29. Rxb7 {[%emt 0:02:47]} Qxe6 {[%emt 0:00:08]} 30. Kg1 {[%emt 0:01:04]} a5 {[%emt 0:01:51]} 31. Qxa4 {[%emt 0:01:35]} Qh6 {[%emt 0:00:14]} 32. Rf1 {[%emt 0:01:10]} Qa6 {[%emt 0:01:34]} 33. Rbf7 {[%emt 0:00:44]} Bd6 {[%emt 0:00:14]} 34. Qd7 {[%emt 0:00:42]} Qb6+ {[%emt 0:00:54]} 35. Kh1 {[%emt 0:00:18]} Rd8 {[%emt 0:00:06]} 36. bxa5 {[%emt 0:00:56]} Qb8 {[%emt 0:01:05]} 37. Qc6 {[%emt 0:00:24]} Bxa3 {[%emt 0:00:34]} 38. a6 {[%emt 0:00:15]} Kg8 {[%emt 0:00:38]} 39. a7 {[%emt 0:00:24]} Qa8 {[%emt 0:00:05]} 40. Qe6 {[%emt 0:00:00]} Kh8 {[%emt 0:00:15]} 41. Qxe5 {[%emt 0:00:53]} Bf8 {[%emt 0:01:19]} 42. Rxf8+ 1-0

[Event "EYCC 2017"]
[Site "Mamaia"]
[Date "2017.09.07"]
[Round "3"]
[White "Asatryan, Sona"]
[Black "Kubicka, Anna"]
[Result "1/2-1/2"]
[ECO "B20"]
[WhiteElo "2043"]
[BlackElo "2221"]
[Annotator "NA"]
[PlyCount "110"]
[EventDate "2017.??.??"]
[EventType "swiss"]
[EventCountry "ROU"]
[SourceTitle "playchess.com"]
[Source "ChessBase"]
[SourceQuality "1"]
[TimeControl "40/5400+30:1800+30"]

1. e4 {[%emt 0:00:00]} c5 {[%emt 0:00:19]} 2. Ne2 {[%emt 0:00:00]} Nf6 {[%emt 0:00:29]} 3. Nbc3 {[%emt 0:00:21]} d6 {[%emt 0:00:29]} 4. g3 {[%emt 0:00:59]} g6 {[%emt 0:01:01]} 5. Bg2 {[%emt 0:00:14]} Bg7 {[%emt 0:00:26]} 6. O-O {[%emt 0:01:27]} O-O {[%emt 0:00:09]} 7. d3 {[%emt 0:01:40]} Nc6 {[%emt 0:01:20]} 8. Bg5 {[%emt 0:02:51]} Rb8 {[%emt 0:04:12]} 9. Qd2 {[%emt 0:01:37]} b5 {[%emt 0:10:08]} 10. Bh6 {[%emt 0:02:55]} b4 {[%emt 0:05:45]} 11. Nd1 {[%emt 0:03:51]} d5 {[%emt 0:08:00]} 12. Bxg7 {[%emt 0:10:03]} Kxg7 {[%emt 0:00:03]} 13. exd5 {[%emt 0:06:41]} Nxd5 {[%emt 0:00:40]} 14. c4 {[%emt 0:05:01]} bxc3 {[%emt 0:00:45]} 15. Nexc3 {[%emt 0:00:29]} Be6 {[%emt 0:09:27]} 16. Ne4 {[%emt 0:07:42]} Qb6 {[%emt 0:21:58]} 17. Rc1 {[%emt 0:06:48]} Nf6 {[%emt 0:04:19]} 18. Nxc5 {[%emt 0:04:28]} Nd4 {[%emt 0:06:00]} 19. b3 {[%emt 0:07:27]} Bh3 {[%emt 0:06:55]} 20. Qb2 {[%emt 0:06:09]} Bxg2 {[%emt 0:01:07]} 21. Kxg2 {[%emt 0:00:06]} Rfd8 {[%emt 0:03:56]} 22. Ne3 {[%emt 0:03:41]} Kg8 {[%emt 0:02:44]} 23. Rc4 {[%emt 0:09:00]} Qd6 {[%emt 0:03:20]} 24. Ne4 {[%emt 0:02:23]} Qb6 {[%emt 0:02:01]} 25. Nc5 {[%emt 0:01:31]} Qd6 {[%emt 0:00:22]} 26. Ne4 {[%emt 0:00:04]} Qb6 {[%emt 0:00:04]} 27. Nc5 {[%emt 0:09:33]} Qc6+ {[%emt 0:01:47]} 28. Ne4 {[%emt 0:00:50]} Qb6 {[%emt 0:00:02]} 29. Nc2 {[%emt 0:02:38]} Nxc2 {[%emt 0:00:55]} 30. Nxf6+ {[%emt 0:00:46]} exf6 {[%emt 0:00:28]} 31. Qxc2 {[%emt 0:00:17]} Qb7+ {[%emt 0:00:01]} 32. Kg1 {[%emt 0:01:34]} Qf3 {[%emt 0:00:37]} 33. Rf4 {[%emt 0:00:39]} Qd5 {[%emt 0:02:18]} 34. Qc4 {[%emt 0:01:23]} Qd6 {[%emt 0:01:28]} 35. Rc1 {[%emt 0:00:44]} Rb6 {[%emt 0:01:41]} 36. d4 {[%emt 0:00:36]} Ra6 {[%emt 0:01:31]} 37. Qc5 {[%emt 0:00:31]} Rxa2 {[%emt 0:00:25]} 38. Re4 {[%emt 0:01:07]} Kg7 {[%emt 0:01:43]} 39. Re7 {[%emt 0:00:50]} Qxd4 {[%emt 0:00:28]} 40. Qxd4 {[%emt 0:00:00]} Rxd4 {[%emt 0:00:01]} 41. Rcc7 {[%emt 0:01:14]} Kh6 {[%emt 0:02:01]} 42. Rxf7 {[%emt 0:07:12]} Kg5 {[%emt 0:00:32]} 43. Rxa7 {[%emt 0:01:12]} Rb2 {[%emt 0:00:38]} 44. Ra4 {[%emt 0:05:11]} Rxa4 {[%emt 0:07:22]} 45. bxa4 {[%emt 0:00:02]} h5 {[%emt 0:00:15]} 46. Kg2 {[%emt 0:05:11]} Ra2 {[%emt 0:00:24]} 47. h4+ {[%emt 0:01:14]} Kf5 {[%emt 0:02:11]} 48. Ra7 {[%emt 0:00:28]} g5 {[%emt 0:03:39]} 49. Ra5+ {[%emt 0:04:14]} Kg4 {[%emt 0:02:06]} 50. Rb5 {[%emt 0:01:59]} Rc2 {[%emt 0:02:07]} 51. a5 {[%emt 0:00:58]} Ra2 {[%emt 0:00:23]} 52. Rc5 {[%emt 0:01:05]} gxh4 {[%emt 0:00:57]} 53. Rc4+ {[%emt 0:02:00]} Kg5 {[%emt 0:00:23]} 54. Rxh4 {[%emt 0:01:58]} Rxa5 55. Rb4 {[%emt 0:00:57]} Ra3 {[%emt 0:01:36]} 1/2-1/2